fUST/lending_fUST_20250531
["ID","MTS","AMOUNT","RATE_DAILY","PERIOD"]
[363254864,1748651442521,-430.0,0.00018904,2]
[363254865,1748651442530,-1001.55,0.00018904,2]
[363254867,1748651442540,-430.0,0.00018904,2]
[363254869,1748651442549,-446.24846426,0.00018904,2]
[363254891,1748651442752,-5000.0,0.00016274,2]
[363254893,1748651442761,-430.0,0.00016438,2]
[363254895,1748651442772,-430.0,0.00016712,2]
[363254897,1748651442782,-430.0,0.00016986,2]
[363254899,1748651442791,-1234.01153574,0.00018904,2]
[363254901,1748651442800,-589.74878737,0.00018904,2]
[363254981,1748651443507,-386.05121263,0.00018904,2]
[363254983,1748651443516,-430.0,0.00018904,2]
[363254985,1748651443526,-506.94,0.00018904,2]
[363254987,1748651443536,-345.97898411,0.00018904,2]
[363254989,1748651443548,-860.17101589,0.00018904,2]
[363254991,1748651443557,-585.16,0.00018904,2]
[363254993,1748651443566,-199.34004983,0.00018904,2]
[363254996,1748651443583,-281.54995017,0.00018904,2]
[363254998,1748651443592,-564.49,0.00018904,2]
[363255000,1748651443603,-566.41,0.00018904,2]
[363255002,1748651443612,-468.87,0.00018904,2]
[363255004,1748651443621,-669.49,0.00018904,2]
[363255006,1748651443630,-456.38,0.00018904,2]
[363255008,1748651443640,-2186.6408069,0.00018909,2]
[363255010,1748651443650,-600.0,0.00018976,2]
[363255013,1748651443659,-12354.54543313,0.00019,3]
[363255015,1748651443668,-25901.4225299,0.00019,2]
[363255017,1748651443680,-8981.49401873,0.00019,2]
[363255132,1748651445026,-12571.88336474,0.00019,2]
[363255134,1748651445038,-6143.45331048,0.00019,2]
[363255136,1748651445050,-23773.93460642,0.00019,2]
[363255139,1748651445066,-4592.10978822,0.00019,2]
[363255260,1748651446800,-430.0,0.00016438,2]
[363255262,1748651446810,-430.0,0.00016712,2]
[363255263,1748651446819,-430.0,0.00016986,2]
[363255265,1748651446829,-999.7943727,0.00019,2]
[363257180,1748651517163,255.472423,0.00013699,2]
[363257188,1748651737876,193.0,0.000141,2]
[363257189,1748651739470,193.0,0.000141,2]
[363257190,1748651873035,367.1,0.00012329,2]
[363257192,1748651883467,305.92,0.00012329,2]
[363257193,1748651893892,254.93,0.00012329,2]
[363257195,1748651904504,212.44,0.00012329,2]
[363257197,1748651915000,177.04,0.00012329,2]
[363257198,1748651921027,-164.34807543,0.000147,2]
[363257199,1748651925424,885.21,0.00012329,2]
[363257202,1748652023829,-264.38810894,0.00014553,2]
[363257203,1748652025226,-158.18523208,0.00014553,2]
[363257204,1748652030056,-212.0816168,0.00014553,2]
[363257209,1748652346140,-172.51820635,0.00014553,2]
[363257210,1748652407118,273.79,0.00012329,2]
[363257211,1748652417553,228.16,0.00012329,2]
[363257212,1748652427991,190.14,0.00012329,2]
[363257213,1748652436761,230.287106,0.00013923,2]
[363257214,1748652438438,158.45,0.00012329,2]
[363257215,1748652448885,792.25,0.00012329,2]
[363257220,1748652552198,242.698801,0.00013699,2]
[363257222,1748652579408,926.8647795,0.0001401,2]
[363257223,1748652586150,-162.22030046,0.00014263,2]
[363257230,1748652591167,-204.20060795,0.00014263,2]
[363257231,1748652594397,-303.55392084,0.00014263,2]
[363257232,1748652599195,429.6088089,0.00013899,2]
[363257233,1748652599686,-156.25836761,0.00014263,2]
[363257234,1748652601809,-152.0,0.00014263,2]
[363257235,1748652606381,422.573341,0.00013899,2]
[363257236,1748652608843,-154.07436628,0.00014263,2]
[363257237,1748652614553,-181.16,0.00014263,2]
[363257238,1748652617120,-188.41772303,0.00014263,2]
[363257239,1748652618620,-198.58919477,0.00014263,2]
[363257240,1748652624773,-191.71790609,0.00014263,2]
[363257241,1748652630286,-524.0,0.00014263,2]
[363257259,1748652632570,-249.52869692,0.00014263,2]
[363257277,1748652638619,-2334.27891605,0.00014263,2]
[363257279,1748652638630,-569.64892457,0.000147,2]
[363257282,1748652638641,-172.918,0.000147,2]
[363257284,1748652638650,-200.78402831,0.00014749,2]
[363257286,1748652638660,-300.0,0.00014898,2]
[363257288,1748652638679,-300.0,0.00014898,2]
[363257291,1748652638691,-300.0,0.00014898,2]
[363257293,1748652638710,-300.0,0.00014898,2]
[363257295,1748652638720,-25.0352354,0.00014898,2]
[363257297,1748652638738,-274.9647646,0.00014898,2]
[363257299,1748652638750,-1200.0,0.00014898,2]
[363257302,1748652638759,-300.0,0.00014898,2]
[363257323,1748652638958,-500.0,0.00014898,2]
[363257325,1748652638976,-526.26303316,0.00014898,2]
[363257327,1748652638985,-500.0,0.00014898,2]
[363257329,1748652638997,-171.23449552,0.00014898,2]
[363257331,1748652639006,-500.0,0.00014898,2]
[363257333,1748652639016,-500.0,0.00014898,2]
[363257335,1748652639025,-500.0,0.00014898,2]
[363257337,1748652639035,-500.0,0.00014898,2]
[363257339,1748652639044,-500.0,0.00014898,2]
[363257342,1748652639054,-500.0,0.00014898,2]
[363257343,1748652639063,-645.80457831,0.00014898,2]
[363257346,1748652639076,-500.0,0.00014898,2]
[363257348,1748652639085,-500.0,0.00014898,2]
[363257350,1748652639094,-500.0,0.00014898,2]
[363257352,1748652639103,-514.95646278,0.00014898,2]
[363257354,1748652639113,-500.0,0.00014898,2]
[363257356,1748652639123,-500.0,0.00014898,2]
[363257358,1748652639132,-500.0,0.00014898,2]
[363257360,1748652639142,-500.0,0.00014898,2]
[363257362,1748652639152,-201.57328263,0.00014898,2]
[363257364,1748652639161,-500.0,0.00014898,2]
[363257366,1748652639171,-500.0,0.00014898,2]
[363257368,1748652639180,-450.68163883,0.00014898,2]
[363257370,1748652639190,-500.0,0.00014898,2]
[363257372,1748652639199,-400.0,0.00014898,2]
[363257374,1748652639209,-500.0,0.00014898,2]
[363257376,1748652639218,-500.0,0.00014898,2]
[363257378,1748652639228,-500.0,0.00014898,2]
[363257380,1748652639241,-500.0,0.00014898,2]
[363257382,1748652639251,-500.0,0.00014898,2]
[363257384,1748652639260,-500.0,0.00014898,2]
[363257386,1748652639269,-500.0,0.00014898,2]
[363257389,1748652639278,-500.0,0.00014898,2]
[363257391,1748652639288,-500.0,0.00014898,2]
[363257393,1748652639298,-500.0,0.00014898,2]
[363257395,1748652639307,-500.0,0.00014898,2]
[363257397,1748652639317,-500.0,0.00014898,2]
[363257399,1748652639327,-500.0,0.00014898,2]
[363257401,1748652639337,-500.0,0.00014898,2]
[363257403,1748652639347,-500.0,0.00014898,2]
[363257405,1748652639356,-500.0,0.00014898,2]
[363257407,1748652639366,-500.0,0.00014898,2]
[363257409,1748652639376,-500.0,0.00014898,2]
[363257411,1748652639385,-500.0,0.00014898,2]
[363257413,1748652639395,-500.0,0.00014898,2]
[363257415,1748652639404,-500.0,0.00014898,2]
[363257417,1748652639414,-500.0,0.00014898,2]
[363257419,1748652639423,-500.0,0.00014898,2]
[363257421,1748652639433,-500.0,0.00014898,2]
[363257423,1748652639442,-500.0,0.00014898,2]
[363257425,1748652639452,-393.83270627,0.00014898,2]
[363257427,1748652639462,-500.0,0.00014898,2]
[363257429,1748652639471,-500.0,0.00014898,2]
[363257431,1748652639480,-500.0,0.00014898,2]
[363257433,1748652639493,-500.0,0.00014898,2]
[363257436,1748652639503,-500.0,0.00014898,2]
[363257438,1748652639512,-500.0,0.00014898,2]
[363257440,1748652639521,-500.0,0.00014898,2]
[363257442,1748652639532,-500.0,0.00014898,2]
[363257444,1748652639542,-500.0,0.00014899,2]
[363257446,1748652639551,-500.0,0.00014899,2]
[363257448,1748652639560,-500.0,0.00014899,2]
[363257450,1748652639570,-500.0,0.00014899,2]
[363257452,1748652639579,-500.0,0.00014899,2]
[363257454,1748652639589,-500.0,0.00014899,2]
[363257456,1748652639599,-204.20610442,0.00014899,2]
[363257458,1748652639608,-500.0,0.00014899,2]
[363257460,1748652639617,-500.0,0.00014899,2]
[363257462,1748652639627,-500.0,0.00014899,2]
[363257464,1748652639636,-500.0,0.00014899,2]
[363257466,1748652639646,-500.0,0.00014899,2]
[363257468,1748652639655,-500.0,0.00014899,2]
[363257470,1748652639665,-500.0,0.00014899,2]
[363257472,1748652639675,-500.0,0.00014899,2]
[363257474,1748652639684,-500.0,0.00014899,2]
[363257476,1748652639696,-500.0,0.00014899,2]
[363257478,1748652639706,-165.87319625,0.000149,2]
[363257480,1748652639715,-38340.47583236,0.000149,2]
[363257482,1748652639724,-7007.46437638,0.000149,2]
[363257484,1748652639735,-226.965,0.00014994,2]
[363257486,1748652639747,-152.0,0.00014996,2]
[363257488,1748652639756,-160.0,0.00014999,2]
[363257490,1748652639765,-3550.65496,0.00014999,2]
[363257492,1748652639776,-1167236.04099677,0.00015,2]
[363257494,1748652639787,-151.0,0.00015,2]
[363257495,1748652639798,-151.0,0.00015,2]
[363257498,1748652639810,-151.0,0.00015,2]
[363257500,1748652639822,-500.0,0.00015173,2]
[363257502,1748652639832,-1558.06223939,0.00015418,2]
[363257504,1748652639842,-500.0,0.00015447,2]
[363257506,1748652639851,-500.0,0.00015721,2]
[363257508,1748652639860,-500.0,0.00015995,2]
[363257510,1748652639870,-4753.749913,0.000161,2]
[363257512,1748652639879,-500.0,0.00016221,2]
[363257514,1748652639889,-500.0,0.00016221,2]
[363257516,1748652639898,-500.0,0.00016221,2]
[363257518,1748652639907,-500.0,0.00016221,2]
[363257520,1748652639917,-500.0,0.00016221,2]
[363257522,1748652639929,-500.0,0.00016221,2]
[363257524,1748652639938,-500.0,0.00016221,2]
[363257526,1748652639947,-549.40032849,0.00016221,2]
[363257528,1748652639957,-500.0,0.00016221,2]
[363257530,1748652639967,-500.0,0.0001625,2]
[363257532,1748652639976,-500.0,0.0001625,2]
[363257534,1748652639986,-2652.7,0.0001625,2]
[363257536,1748652639997,-2652.7,0.0001625,2]
[363257538,1748652640007,-2652.7,0.0001625,2]
[363257540,1748652640017,-2652.7,0.0001625,2]
[363257542,1748652640026,-189.73232052,0.00016269,2]
[363257544,1748652640036,-500.0,0.00016282,2]
[363257546,1748652640046,-160.15275943,0.00016282,2]
[363257548,1748652640055,-500.0,0.00016282,2]
[363257550,1748652640065,-420.0,0.00016307,2]
[363257552,1748652640075,-420.0,0.00016307,2]
[363257554,1748652640084,-420.0,0.00016307,2]
[363257556,1748652640094,-420.0,0.00016307,2]
[363257558,1748652640104,-420.0,0.00016307,2]
[363257560,1748652640113,-500.0,0.00016343,2]
[363257562,1748652640123,-500.0,0.00016377,2]
[363257564,1748652640132,-532.98731685,0.00016377,2]
[363257566,1748652640142,-1680.0,0.00016388,2]
[363257568,1748652640151,-500.0,0.00016409,2]
[363257570,1748652640160,-500.0,0.00016409,2]
[363257572,1748652640169,-500.0,0.00016409,2]
[363257574,1748652640178,-588.39050249,0.00016409,2]
[363257576,1748652640187,-500.0,0.00016409,2]
[363257578,1748652640197,-508.06183039,0.00016409,2]
[363257580,1748652640206,-300.38778876,0.00016409,2]
[363257582,1748652640215,-500.0,0.00016409,2]
[363257584,1748652640225,-255.7107598,0.00016409,2]
[363257586,1748652640234,-500.0,0.00016409,2]
[363257588,1748652640246,-500.0,0.00016409,2]
[363257590,1748652640257,-2949.65,0.00016437,2]
[363257592,1748652640266,-430.0,0.00016438,2]
[363257594,1748652640275,-430.0,0.00016438,2]
[363257596,1748652640285,-430.0,0.00016438,2]
[363257598,1748652640294,-430.0,0.00016438,2]
[363257600,1748652640304,-430.0,0.00016438,2]
[363257602,1748652640313,-430.0,0.00016438,2]
[363257604,1748652640322,-257.08318413,0.00016438,2]
[363257606,1748652640331,-430.0,0.00016438,2]
[363257610,1748652640343,-430.0,0.00016438,2]
[363257611,1748652640353,-430.0,0.00016438,2]
[363257613,1748652640362,-430.0,0.00016438,2]
[363257615,1748652640372,-430.0,0.00016438,2]
[363257618,1748652640382,-430.0,0.00016438,2]
[363257621,1748652640391,-430.0,0.00016438,2]
[363257622,1748652640401,-532.51255465,0.00016438,2]
[363257625,1748652640411,-430.0,0.00016438,2]
[363257626,1748652640420,-430.0,0.00016438,2]
[363257628,1748652640428,-430.0,0.00016438,2]
[363257630,1748652640438,-430.0,0.00016438,2]
[363257632,1748652640448,-430.0,0.00016438,2]
[363257634,1748652640457,-430.0,0.00016438,2]
[363257636,1748652640466,-430.0,0.00016438,2]
[363257638,1748652640476,-430.0,0.00016438,2]
[363257640,1748652640485,-430.0,0.00016438,2]
[363257642,1748652640498,-430.0,0.00016438,2]
[363257644,1748652640507,-430.0,0.00016438,2]
[363257646,1748652640517,-352.86833078,0.00016438,2]
[363257648,1748652640526,-430.0,0.00016438,2]
[363257650,1748652640535,-430.0,0.00016438,2]
[363257653,1748652640545,-500.0,0.00016438,2]
[363257655,1748652640554,-430.0,0.00016438,2]
[363257657,1748652640564,-223.09972044,0.00016438,2]
[363257658,1748652640573,-430.0,0.00016438,2]
[363257661,1748652640583,-430.0,0.00016438,2]
[363257663,1748652640593,-430.0,0.00016438,2]
[363257665,1748652640603,-430.0,0.00016438,2]
[363257667,1748652640612,-164.5448528,0.00016438,2]
[363257668,1748652640622,-430.0,0.00016438,2]
[363257670,1748652640633,-430.0,0.00016438,2]
[363257672,1748652640643,-430.0,0.00016438,2]
[363257674,1748652640653,-430.0,0.00016438,2]
[363257677,1748652640662,-430.0,0.00016438,2]
[363257679,1748652640672,-430.0,0.00016438,2]
[363257681,1748652640681,-430.0,0.00016438,2]
[363257682,1748652640691,-430.0,0.00016438,2]
[363257685,1748652640704,-430.0,0.00016438,2]
[363257686,1748652640714,-430.0,0.00016438,2]
[363257688,1748652640723,-430.0,0.00016438,2]
[363257691,1748652640734,-430.0,0.00016438,2]
[363257692,1748652640746,-430.0,0.00016438,2]
[363257694,1748652640756,-430.0,0.00016438,2]
[363257696,1748652640765,-430.0,0.00016438,2]
[363257699,1748652640777,-430.0,0.00016438,2]
[363257701,1748652640786,-430.0,0.00016438,2]
[363257703,1748652640795,-430.0,0.00016438,2]
[363257705,1748652640805,-430.0,0.00016438,2]
[363257706,1748652640814,-430.0,0.00016438,2]
[363257708,1748652640823,-430.0,0.00016438,2]
[363257710,1748652640832,-430.0,0.00016438,2]
[363257713,1748652640843,-430.0,0.00016438,2]
[363257714,1748652640853,-430.0,0.00016438,2]
[363257717,1748652640862,-430.0,0.00016438,2]
[363257719,1748652640872,-430.0,0.00016438,2]
[363257721,1748652640881,-430.0,0.00016438,2]
[363257723,1748652640890,-430.0,0.00016438,2]
[363257726,1748652640900,-1259.52,0.00016438,2]
[363257729,1748652640909,-430.0,0.00016438,2]
[363257732,1748652640919,-430.0,0.00016438,2]
[363257735,1748652640929,-430.0,0.00016438,2]
[363257737,1748652640938,-588.0,0.00016438,2]
[363257739,1748652640948,-430.0,0.00016438,2]
[363257741,1748652640959,-432.13836233,0.00016438,2]
[363257743,1748652640969,-430.0,0.00016438,2]
[363257745,1748652640979,-430.0,0.00016438,2]
[363257747,1748652640992,-430.0,0.00016438,2]
[363257748,1748652641002,-430.0,0.00016438,2]
[363257751,1748652641012,-500.0,0.00016438,2]
[363257753,1748652641022,-500.0,0.00016438,2]
[363257755,1748652641032,-500.0,0.00016438,2]
[363257756,1748652641044,-430.0,0.00016438,2]
[363257758,1748652641054,-500.0,0.00016438,2]
[363257760,1748652641063,-430.0,0.00016438,2]
[363257762,1748652641072,-500.0,0.00016438,2]
[363257764,1748652641082,-500.0,0.00016438,2]
[363257766,1748652641091,-485.57837807,0.00016438,2]
[363257768,1748652641101,-430.0,0.00016438,2]
[363257770,1748652641110,-430.0,0.00016438,2]
[363257772,1748652641121,-430.0,0.00016438,2]
[363257774,1748652641134,-430.0,0.00016438,2]
[363257776,1748652641144,-430.0,0.00016438,2]
[363257778,1748652641154,-430.0,0.00016438,2]
[363257780,1748652641164,-467.24861879,0.00016438,2]
[363257782,1748652641174,-430.0,0.00016438,2]
[363257784,1748652641183,-430.0,0.00016438,2]
[363257786,1748652641193,-430.0,0.00016438,2]
[363257788,1748652641203,-223.50757008,0.00016438,2]
[363257790,1748652641212,-430.0,0.00016438,2]
[363257792,1748652641222,-430.0,0.00016438,2]
[363257794,1748652641232,-430.0,0.00016438,2]
[363257796,1748652641244,-430.0,0.00016438,2]
[363257798,1748652641254,-430.0,0.00016438,2]
[363257800,1748652641264,-430.0,0.00016438,2]
[363257802,1748652641274,-168.49925752,0.00016438,2]
[363257804,1748652641283,-1601.0,0.00016438,2]
[363257806,1748652641293,-430.0,0.00016438,2]
[363257808,1748652641302,-430.0,0.00016438,2]
[363257810,1748652641312,-430.0,0.00016438,2]
[363257812,1748652641321,-430.0,0.00016438,2]
[363257814,1748652641331,-430.0,0.00016438,2]
[363257816,1748652641341,-430.0,0.00016438,2]
[363257818,1748652641350,-1540.39,0.00016438,2]
[363257820,1748652641361,-2452.49,0.00016438,2]
[363257822,1748652641370,-430.0,0.00016438,2]
[363257824,1748652641380,-430.0,0.00016438,2]
[363257826,1748652641389,-545.06238516,0.00016438,2]
[363257828,1748652641398,-500.0,0.00016438,2]
[363257830,1748652641408,-430.0,0.00016438,2]
[363257832,1748652641418,-430.0,0.00016438,2]
[363257834,1748652641427,-430.0,0.00016438,2]
[363257836,1748652641437,-517.67681305,0.00016438,2]
[363257838,1748652641446,-430.0,0.00016438,2]
[363257840,1748652641456,-430.0,0.00016438,2]
[363257843,1748652641468,-430.0,0.00016438,2]
[363257844,1748652641484,-430.0,0.00016438,2]
[363257846,1748652641496,-430.0,0.00016438,2]
[363257848,1748652641507,-430.0,0.00016438,2]
[363257850,1748652641516,-430.0,0.00016438,2]
[363257853,1748652641526,-430.0,0.00016438,2]
[363257855,1748652641536,-430.0,0.00016438,2]
[363257857,1748652641547,-430.0,0.00016438,2]
[363257858,1748652641557,-430.0,0.00016438,2]
[363257861,1748652641567,-430.0,0.00016438,2]
[363257862,1748652641576,-242.64550371,0.00016438,2]
[363257864,1748652641585,-469.04087542,0.00016438,2]
[363257866,1748652641594,-430.0,0.00016438,2]
[363257868,1748652641604,-430.0,0.00016438,2]
[363257870,1748652641613,-430.0,0.00016438,2]
[363257872,1748652641623,-430.0,0.00016438,2]
[363257874,1748652641633,-430.0,0.00016438,2]
[363257876,1748652641642,-430.0,0.00016438,2]
[363257878,1748652641652,-430.0,0.00016438,2]
[363257880,1748652641661,-2586.01,0.00016438,2]
[363257882,1748652641671,-430.0,0.00016438,2]
[363257884,1748652641680,-430.0,0.00016438,2]
[363257886,1748652641690,-430.0,0.00016438,2]
[363257888,1748652641703,-430.0,0.00016438,2]
[363257890,1748652641713,-430.0,0.00016438,2]
[363257892,1748652641721,-430.0,0.00016438,2]
[363257894,1748652641731,-430.0,0.00016438,2]
[363257897,1748652641744,-430.0,0.00016438,2]
[363257898,1748652641753,-430.0,0.00016438,2]
[363257901,1748652641764,-430.0,0.00016438,2]
[363257903,1748652641775,-543.35,0.00016438,2]
[363257905,1748652641784,-430.0,0.00016438,2]
[363257907,1748652641794,-430.0,0.00016438,2]
[363257909,1748652641803,-430.0,0.00016438,2]
[363257911,1748652641813,-430.0,0.00016438,2]
[363257912,1748652641822,-430.0,0.00016438,2]
[363257915,1748652641831,-430.0,0.00016438,2]
[363257917,1748652641841,-618.46,0.00016438,2]
[363257919,1748652641850,-430.0,0.00016438,2]
[363257921,1748652641860,-430.0,0.00016438,2]
[363257923,1748652641870,-500.0,0.00016438,2]
[363257924,1748652641880,-430.0,0.00016438,2]
[363257926,1748652641889,-430.0,0.00016438,2]
[363257927,1748652641899,-341.1941447,0.00016438,2]
[363257929,1748652641908,-462.50949502,0.00016438,2]
[363257931,1748652641917,-430.0,0.00016438,2]
[363257945,1748652642045,-430.0,0.00016438,2]
[363257947,1748652642055,-4723.72,0.00016438,2]
[363257949,1748652642065,-430.0,0.00016438,2]
[363257951,1748652642074,-430.0,0.00016438,2]
[363257953,1748652642084,-400.84895349,0.00016438,2]
[363257955,1748652642094,-430.0,0.00016438,2]
[363257957,1748652642103,-213.44292413,0.00016438,2]
[363257959,1748652642112,-430.0,0.00016438,2]
[363257961,1748652642122,-430.0,0.00016438,2]
[363257963,1748652642131,-430.0,0.00016438,2]
[363257965,1748652642141,-189.31241294,0.00016438,2]
[363257967,1748652642151,-430.0,0.00016438,2]
[363257969,1748652642160,-430.0,0.00016438,2]
[363257971,1748652642170,-430.0,0.00016438,2]
[363257973,1748652642179,-430.0,0.00016438,2]
[363257975,1748652642188,-527.01,0.00016438,2]
[363257977,1748652642198,-445.99,0.00016438,2]
[363257979,1748652642207,-430.0,0.00016438,2]
[363257981,1748652642217,-430.0,0.00016438,2]
[363257983,1748652642226,-430.0,0.00016438,2]
[363257985,1748652642235,-327.56847809,0.00016438,2]
[363257987,1748652642247,-430.0,0.00016438,2]
[363257989,1748652642256,-430.0,0.00016438,2]
[363257991,1748652642266,-910.35,0.00016438,2]
[363257993,1748652642275,-430.0,0.00016438,2]
[363257995,1748652642284,-430.0,0.00016438,2]
[363257997,1748652642294,-430.0,0.00016438,2]
[363257999,1748652642303,-545.39,0.00016438,2]
[363258001,1748652642312,-430.0,0.00016438,2]
[363258003,1748652642322,-500.0,0.00016438,2]
[363258005,1748652642331,-500.0,0.00016438,2]
[363258007,1748652642340,-500.0,0.00016438,2]
[363258009,1748652642349,-500.0,0.00016438,2]
[363258011,1748652642358,-500.0,0.00016438,2]
[363258012,1748652642368,-500.0,0.00016438,2]
[363258014,1748652642378,-500.0,0.00016438,2]
[363258016,1748652642387,-191.92881174,0.00016438,2]
[363258017,1748652642396,-430.0,0.00016438,2]
[363258018,1748652642405,-430.0,0.00016438,2]
[363258019,1748652642415,-282.30220184,0.00016438,2]
[363258020,1748652642424,-430.0,0.00016438,2]
[363258021,1748652642433,-188.70873862,0.00016438,2]
[363258022,1748652642443,-430.0,0.00016438,2]
[363258023,1748652642452,-3010.76,0.00016438,2]
[363258024,1748652642461,-565.13,0.00016438,2]
[363258025,1748652642470,-430.0,0.00016438,2]
[363258026,1748652642479,-192.86084402,0.00016438,2]
[363258027,1748652642489,-401.10878667,0.00016438,2]
[363258028,1748652642499,-430.0,0.00016438,2]
[363258029,1748652642507,-966.84,0.00016438,2]
[363258030,1748652642516,-3947.32,0.00016438,2]
[363258031,1748652642525,-1737.31,0.00016438,2]
[363258032,1748652642534,-430.0,0.00016438,2]
[363258033,1748652642543,-430.0,0.00016438,2]
[363258034,1748652642552,-576.03,0.00016438,2]
[363258035,1748652642561,-430.0,0.00016438,2]
[363258036,1748652642570,-430.0,0.00016438,2]
[363258037,1748652642579,-3363.45,0.00016438,2]
[363258038,1748652642588,-430.0,0.00016438,2]
[363258039,1748652642596,-430.0,0.00016438,2]
[363258040,1748652642605,-430.0,0.00016438,2]
[363258041,1748652642614,-430.0,0.00016438,2]
[363258042,1748652642623,-430.0,0.00016438,2]
[363258043,1748652642632,-430.0,0.00016438,2]
[363258044,1748652642641,-430.0,0.00016438,2]
[363258045,1748652642650,-430.0,0.00016438,2]
[363258046,1748652642659,-430.0,0.00016438,2]
[363258048,1748652642668,-430.0,0.00016438,2]
[363258050,1748652642678,-430.0,0.00016438,2]
[363258052,1748652642688,-430.0,0.00016438,2]
[363258054,1748652642700,-472.96396673,0.00016438,2]
[363258056,1748652642709,-430.0,0.00016438,2]
[363258058,1748652642720,-430.0,0.00016438,2]
[363258060,1748652642729,-430.0,0.00016438,2]
[363258062,1748652642740,-430.0,0.00016438,2]
[363258064,1748652642750,-430.0,0.00016438,2]
[363258066,1748652642759,-430.0,0.00016438,2]
[363258068,1748652642769,-507.14631814,0.00016438,2]
[363258070,1748652642779,-1216.53,0.00016438,2]
[363258072,1748652642788,-430.0,0.00016438,2]
[363258074,1748652642798,-430.0,0.00016438,2]
[363258076,1748652642807,-629.35,0.00016438,2]
[363258078,1748652642816,-846.78,0.00016438,2]
[363258080,1748652642825,-430.0,0.00016438,2]
[363258082,1748652642835,-430.0,0.00016438,2]
[363258083,1748652642845,-430.0,0.00016438,2]
[363258085,1748652642855,-430.0,0.00016438,2]
[363258087,1748652642865,-320.0,0.00016438,2]
[363258090,1748652642875,-430.0,0.00016438,2]
[363258091,1748652642884,-430.0,0.00016438,2]
[363258093,1748652642894,-430.0,0.00016438,2]
[363258095,1748652642903,-430.0,0.00016438,2]
[363258097,1748652642913,-430.0,0.00016438,2]
[363258099,1748652642924,-207.92630191,0.00016438,2]
[363258101,1748652642934,-430.0,0.00016438,2]
[363258103,1748652642943,-430.0,0.00016438,2]
[363258105,1748652642953,-430.0,0.00016438,2]
[363258107,1748652642962,-430.0,0.00016438,2]
[363258109,1748652642972,-430.0,0.00016438,2]
[363258111,1748652642981,-430.0,0.00016438,2]
[363258113,1748652642991,-430.0,0.00016438,2]
[363258115,1748652643000,-430.0,0.00016438,2]
[363258117,1748652643010,-430.0,0.00016438,2]
[363258119,1748652643019,-430.0,0.00016438,2]
[363258121,1748652643028,-430.0,0.00016438,2]
[363258123,1748652643037,-430.0,0.00016438,2]
[363258125,1748652643046,-430.0,0.00016438,2]
[363258127,1748652643055,-430.0,0.00016438,2]
[363258129,1748652643065,-433.78185387,0.00016438,2]
[363258131,1748652643074,-430.0,0.00016438,2]
[363258133,1748652643084,-496.57,0.00016438,2]
[363258135,1748652643093,-430.0,0.00016438,2]
[363258137,1748652643102,-430.0,0.00016438,2]
[363258139,1748652643111,-430.0,0.00016438,2]
[363258141,1748652643121,-430.0,0.00016438,2]